[Event "*** SCC Grand Prix: Titled Tuesday Blitz"]
[Site "Chess.com"]
[Date "2020.10.13"]
[Round "10"]
[White "esrosenberg"]
[Black "WonderChampion"]
[Result "1-0"]
[WhiteElo "2288"]
[BlackElo "2037"]
[TimeControl "180+1"]
[EndTime "11:54:06 PDT"]
[Termination "esrosenberg won by resignation"]

1. Nf3 {[%clk 0:03:00.9]} 1... e6 {[%clk 0:02:03]} 2. c4 {[%clk 0:03:00.2]} 2...
d5 {[%clk 0:02:03.7]} 3. d4 {[%clk 0:03:00.1]} 3... dxc4 {[%clk 0:02:03.5]} 4.
Qa4+ {[%clk 0:02:56.3]} 4... Bd7 {[%clk 0:01:58.6]} 5. Qxc4 {[%clk 0:02:55]}
5... Bc6 {[%clk 0:01:57.2]} 6. Nc3 {[%clk 0:02:49.5]} 6... Nd7 {[%clk
0:01:56.1]} 7. e4 {[%clk 0:02:46.5]} 7... Nb6 {[%clk 0:01:54.4]} 8. Qd3 {[%clk
0:02:43]} 8... Nf6 {[%clk 0:01:53.1]} 9. a3 {[%clk 0:02:39]} 9... Be7 {[%clk
0:01:49.2]} 10. Bf4 {[%clk 0:02:38.7]} 10... O-O {[%clk 0:01:46.1]} 11. h3
{[%clk 0:02:38.2]} 11... Re8 {[%clk 0:01:44.2]} 12. Rd1 {[%clk 0:02:37.6]} 12...
Nfd7 {[%clk 0:01:41.4]} 13. Be2 {[%clk 0:02:31.9]} 13... f6 {[%clk 0:01:38.8]}
14. d5 {[%clk 0:02:27.3]} 14... exd5 {[%clk 0:01:38]} 15. exd5 {[%clk
0:02:27.5]} 15... Ba4 {[%clk 0:01:37.8]} 16. Nxa4 {[%clk 0:02:22.7]} 16... Nxa4
{[%clk 0:01:36.9]} 17. d6 {[%clk 0:01:48.4]} 17... cxd6 {[%clk 0:01:32.2]} 18.
Qc4+ {[%clk 0:01:43.6]} 18... Kh8 {[%clk 0:01:24.8]} 19. Qxa4 {[%clk 0:01:43.7]}
19... Nc5 {[%clk 0:01:23.9]} 20. Qc2 {[%clk 0:01:22.9]} 20... Bf8 {[%clk
0:01:19.9]} 21. O-O {[%clk 0:01:21.8]} 21... Qb6 {[%clk 0:01:19]} 22. Be3 {[%clk
0:01:12.4]} 22... Rac8 {[%clk 0:01:18.2]} 23. b4 {[%clk 0:01:10.9]} 23... Ne4
{[%clk 0:01:10.2]} 24. Qxc8 {[%clk 0:01:04.8]} 24... Rxc8 {[%clk 0:01:04.6]} 25.
Bxb6 {[%clk 0:01:04.5]} 25... axb6 {[%clk 0:01:05.5]} 26. Rc1 {[%clk 0:01:01.8]}
26... Re8 {[%clk 0:01:05.1]} 27. Bb5 {[%clk 0:01:00.4]} 27... Rd8 {[%clk
0:01:04.2]} 28. Nd4 {[%clk 0:00:58.7]} 28... d5 {[%clk 0:01:03.9]} 29. Ne6
{[%clk 0:00:58.2]} 29... Rb8 {[%clk 0:01:02.4]} 30. f3 {[%clk 0:00:39.3]} 30...
Nd2 {[%clk 0:01:01.1]} 31. Rfe1 {[%clk 0:00:37.2]} 31... Nb3 {[%clk 0:01:00.5]}
32. Rc7 {[%clk 0:00:34.8]} 32... g6 {[%clk 0:00:55.6]} 33. Nxf8 {[%clk
0:00:31.5]} 33... Rxf8 {[%clk 0:00:54.9]} 34. Rxb7 {[%clk 0:00:32.1]} 34... Nd4
{[%clk 0:00:53.5]} 35. Bd3 {[%clk 0:00:29.5]} 35... Nc6 {[%clk 0:00:51.7]} 36.
Rc7 {[%clk 0:00:28.5]} 36... Ne5 {[%clk 0:00:51.4]} 37. Bb1 {[%clk 0:00:27.7]}
37... d4 {[%clk 0:00:51.4]} 38. f4 {[%clk 0:00:27.5]} 1-0

[Event "*** SCC Grand Prix: Titled Tuesday Blitz"]
[Site "Chess.com"]
[Date "2020.10.13"]
[Round "10"]
[White "VladaSviridova"]
[Black "tteshan"]
[Result "0-1"]
[WhiteElo "2259"]
[BlackElo "2383"]
[TimeControl "180+1"]
[EndTime "11:54:08 PDT"]
[Termination "tteshan won by checkmate"]

1. d4 {[%clk 0:03:00.9]} 1... d5 {[%clk 0:03:00.1]} 2. c4 {[%clk 0:03:01.1]}
2... dxc4 {[%clk 0:03:00.6]} 3. Nf3 {[%clk 0:03:01]} 3... Nf6 {[%clk 0:03:01]}
4. e3 {[%clk 0:03:01.3]} 4... Bg4 {[%clk 0:03:01.5]} 5. Bxc4 {[%clk 0:03:00.6]}
5... e6 {[%clk 0:03:01.9]} 6. h3 {[%clk 0:02:59.5]} 6... Bh5 {[%clk 0:03:01.5]}
7. Nc3 {[%clk 0:02:58.1]} 7... a6 {[%clk 0:03:01]} 8. g4 {[%clk 0:02:55.7]} 8...
Bg6 {[%clk 0:02:59.9]} 9. Ne5 {[%clk 0:02:55.9]} 9... Nbd7 {[%clk 0:02:58.8]}
10. Nxg6 {[%clk 0:02:40.8]} 10... hxg6 {[%clk 0:02:59.7]} 11. Kf1 {[%clk
0:02:40.2]} 11... Nb6 {[%clk 0:02:54.4]} 12. Bb3 {[%clk 0:02:37.9]} 12... c5
{[%clk 0:02:36.6]} 13. dxc5 {[%clk 0:02:15]} 13... Bxc5 {[%clk 0:02:33.9]} 14.
Kg2 {[%clk 0:02:11.9]} 14... Qxd1 {[%clk 0:02:28.6]} 15. Bxd1 {[%clk 0:02:05.9]}
15... Ke7 {[%clk 0:02:26.2]} 16. Bf3 {[%clk 0:02:05.5]} 16... Rab8 {[%clk
0:02:13.9]} 17. a3 {[%clk 0:01:57.5]} 17... Nfd7 {[%clk 0:02:08.7]} 18. b4
{[%clk 0:01:54.7]} 18... Bd6 {[%clk 0:02:08]} 19. Ne4 {[%clk 0:01:21.6]} 19...
Be5 {[%clk 0:02:01.1]} 20. Rb1 {[%clk 0:01:21.7]} 20... Nc4 {[%clk 0:01:53.7]}
21. a4 {[%clk 0:00:53.3]} 21... b5 {[%clk 0:01:05.8]} 22. a5 {[%clk 0:00:52.4]}
22... Rbc8 {[%clk 0:01:02.5]} 23. Nd2 {[%clk 0:00:44.5]} 23... Nxd2 {[%clk
0:00:56.8]} 24. Bxd2 {[%clk 0:00:44.2]} 24... Rc2 {[%clk 0:00:56.4]} 25. Rhd1
{[%clk 0:00:43.2]} 25... Bd6 {[%clk 0:00:50.5]} 26. Be1 {[%clk 0:00:38.1]} 26...
Ne5 {[%clk 0:00:47.6]} 27. Bb7 {[%clk 0:00:36.9]} 27... Nc4 {[%clk 0:00:30.4]}
28. Be4 {[%clk 0:00:24]} 28... Nxe3+ {[%clk 0:00:25.8]} 29. Kf3 {[%clk
0:00:22.2]} 29... Rxh3# {[%clk 0:00:25.1]} 0-1

[Event "*** SCC Grand Prix: Titled Tuesday Blitz"]
[Site "Chess.com"]
[Date "2020.10.13"]
[Round "10"]
[White "djano"]
[Black "TheMagnet"]
[Result "1-0"]
[WhiteElo "2475"]
[BlackElo "2580"]
[TimeControl "180+1"]
[EndTime "11:54:10 PDT"]
[Termination "djano won by resignation"]

1. d4 {[%clk 0:03:00.9]} 1... Nf6 {[%clk 0:03:00]} 2. Nf3 {[%clk 0:03:00.3]}
2... g6 {[%clk 0:03:00.4]} 3. Bf4 {[%clk 0:02:59.5]} 3... Bg7 {[%clk 0:03:00.4]}
4. Nbd2 {[%clk 0:02:55.5]} 4... O-O {[%clk 0:02:59.1]} 5. c3 {[%clk 0:02:50.2]}
5... d6 {[%clk 0:02:58.2]} 6. h3 {[%clk 0:02:43.3]} 6... c5 {[%clk 0:02:58.2]}
7. dxc5 {[%clk 0:02:42.5]} 7... dxc5 {[%clk 0:02:58]} 8. e4 {[%clk 0:02:42.7]}
8... Nc6 {[%clk 0:02:56]} 9. Bh2 {[%clk 0:02:42.8]} 9... b6 {[%clk 0:02:48]} 10.
e5 {[%clk 0:02:40.6]} 10... Nd5 {[%clk 0:02:46]} 11. Qa4 {[%clk 0:02:38.5]}
11... Bb7 {[%clk 0:02:36.1]} 12. Bb5 {[%clk 0:02:22.1]} 12... Qc8 {[%clk
0:02:29]} 13. O-O {[%clk 0:02:17.2]} 13... a6 {[%clk 0:02:28.3]} 14. Be2 {[%clk
0:02:17.3]} 14... Qf5 {[%clk 0:02:14.3]} 15. Rfe1 {[%clk 0:01:48.8]} 15... Nxe5
{[%clk 0:02:05.2]} 16. Nxe5 {[%clk 0:01:05.7]} 16... Bxe5 {[%clk 0:02:06.1]} 17.
Bxe5 {[%clk 0:00:49.5]} 17... Qxe5 {[%clk 0:02:07]} 18. Bf3 {[%clk 0:00:47.5]}
18... Qc7 {[%clk 0:01:59.6]} 19. Qh4 {[%clk 0:00:45.5]} 19... Nf6 {[%clk
0:01:49]} 20. Re3 {[%clk 0:00:38.9]} 20... Rad8 {[%clk 0:01:40.6]} 21. Nf1
{[%clk 0:00:30.8]} 21... Kg7 {[%clk 0:01:36.4]} 22. Rae1 {[%clk 0:00:29.9]}
22... Bxf3 {[%clk 0:01:32.5]} 23. Rxf3 {[%clk 0:00:21.1]} 23... c4 {[%clk
0:01:08.9]} 24. Ng3 {[%clk 0:00:20.2]} 24... Rd5 {[%clk 0:01:03.8]} 25. Ne4
{[%clk 0:00:14]} 25... Nxe4 {[%clk 0:01:03.3]} 26. Qxe4 {[%clk 0:00:14.5]} 26...
e6 {[%clk 0:00:58.9]} 27. Qh4 {[%clk 0:00:14.7]} 27... Rfd8 {[%clk 0:00:49.1]}
28. Qf6+ {[%clk 0:00:14]} 28... Kg8 {[%clk 0:00:49.7]} 29. g3 {[%clk 0:00:13.2]}
29... Rd1 {[%clk 0:00:48.4]} 30. Re3 {[%clk 0:00:11.9]} 30... Rxe1+ {[%clk
0:00:46.2]} 31. Rxe1 {[%clk 0:00:12.8]} 31... b5 {[%clk 0:00:44.6]} 32. Re4
{[%clk 0:00:12]} 32... Qd6 {[%clk 0:00:43]} 33. Rd4 {[%clk 0:00:11.5]} 1-0

[Event "*** SCC Grand Prix: Titled Tuesday Blitz"]
[Site "Chess.com"]
[Date "2020.10.13"]
[Round "10"]
[White "Witik"]
[Black "Korchmar_Vasiliy"]
[Result "1-0"]
[WhiteElo "2746"]
[BlackElo "2592"]
[TimeControl "180+1"]
[EndTime "11:54:14 PDT"]
[Termination "Witik won on time"]

1. e4 {[%clk 0:03:00.9]} 1... c5 {[%clk 0:03:00.1]} 2. Nf3 {[%clk 0:03:00.7]}
2... d6 {[%clk 0:03:00]} 3. d4 {[%clk 0:02:55.1]} 3... cxd4 {[%clk 0:02:59.7]}
4. Nxd4 {[%clk 0:02:56]} 4... Nf6 {[%clk 0:03:00.3]} 5. Nc3 {[%clk 0:02:56.4]}
5... Nc6 {[%clk 0:03:00.8]} 6. Be2 {[%clk 0:02:55.8]} 6... e5 {[%clk 0:03:00.7]}
7. Nf3 {[%clk 0:02:55.5]} 7... h6 {[%clk 0:02:58.1]} 8. O-O {[%clk 0:02:55]}
8... Be7 {[%clk 0:02:58.7]} 9. Re1 {[%clk 0:02:54.4]} 9... O-O {[%clk
0:02:58.3]} 10. b3 {[%clk 0:02:54.6]} 10... Bg4 {[%clk 0:02:51.9]} 11. Bb2
{[%clk 0:02:53.4]} 11... Rc8 {[%clk 0:02:49]} 12. Nd5 {[%clk 0:02:53]} 12...
Nxe4 {[%clk 0:02:42.8]} 13. Nxe5 {[%clk 0:02:43.4]} 13... Bxe2 {[%clk
0:01:52.1]} 14. Nxc6 {[%clk 0:02:32.5]} 14... bxc6 {[%clk 0:01:19.5]} 15. Nxe7+
{[%clk 0:02:32.1]} 15... Qxe7 {[%clk 0:01:18.8]} 16. Rxe2 {[%clk 0:02:23.5]}
16... d5 {[%clk 0:00:48.1]} 17. f3 {[%clk 0:02:17.5]} 17... f5 {[%clk
0:00:41.8]} 18. fxe4 {[%clk 0:02:15.1]} 18... fxe4 {[%clk 0:00:41.2]} 19. Qd4
{[%clk 0:02:13.9]} 19... Rf5 {[%clk 0:00:36.9]} 20. Rf1 {[%clk 0:02:03.1]} 20...
Rxf1+ {[%clk 0:00:19.3]} 21. Kxf1 {[%clk 0:02:03.1]} 21... Rf8+ {[%clk
0:00:17.6]} 22. Rf2 {[%clk 0:02:03.4]} 22... Re8 {[%clk 0:00:10]} 23. Ke2 {[%clk
0:01:51.1]} 23... Qg5 {[%clk 0:00:07.4]} 24. Qe3 {[%clk 0:01:00.5]} 24... Qh5+
{[%clk 0:00:07.4]} 25. Kd2 {[%clk 0:01:00.1]} 25... Qxh2 {[%clk 0:00:07.2]} 26.
Bd4 {[%clk 0:00:59.3]} 26... a6 {[%clk 0:00:05.8]} 27. b4 {[%clk 0:00:58.7]}
27... Qh5 {[%clk 0:00:05.1]} 28. a3 {[%clk 0:00:57.5]} 28... Re6 {[%clk
0:00:05.1]} 29. Kc3 {[%clk 0:00:55.3]} 29... Rg6 {[%clk 0:00:04.8]} 30. Qf4
{[%clk 0:00:53.3]} 30... Kh7 {[%clk 0:00:04.7]} 31. Kb2 {[%clk 0:00:49]} 31...
Qd1 {[%clk 0:00:04.7]} 32. Qe5 {[%clk 0:00:48.1]} 1-0

[Event "*** SCC Grand Prix: Titled Tuesday Blitz"]
[Site "Chess.com"]
[Date "2020.10.13"]
[Round "10"]
[White "Samantha_Ross"]
[Black "RamyresCoelho"]
[Result "1-0"]
[WhiteElo "2267"]
[BlackElo "2078"]
[TimeControl "180+1"]
[EndTime "11:54:15 PDT"]
[Termination "Samantha_Ross won by resignation"]

1. e4 {[%clk 0:02:59.9]} 1... c5 {[%clk 0:02:26.9]} 2. Nf3 {[%clk 0:02:55.1]}
2... d6 {[%clk 0:02:27]} 3. Bb5+ {[%clk 0:02:54.5]} 3... Nd7 {[%clk 0:02:26.3]}
4. d4 {[%clk 0:02:54.3]} 4... cxd4 {[%clk 0:02:25.5]} 5. Qxd4 {[%clk 0:02:55.2]}
5... a6 {[%clk 0:02:25.6]} 6. Bxd7+ {[%clk 0:02:54.8]} 6... Bxd7 {[%clk
0:02:26.5]} 7. Nc3 {[%clk 0:02:55]} 7... e5 {[%clk 0:02:26.9]} 8. Qd3 {[%clk
0:02:54.8]} 8... h6 {[%clk 0:02:27.6]} 9. Nd5 {[%clk 0:02:54]} 9... Nf6 {[%clk
0:02:25.7]} 10. Be3 {[%clk 0:02:54.3]} 10... Nxd5 {[%clk 0:02:25.7]} 11. Qxd5
{[%clk 0:02:55.2]} 11... Bc6 {[%clk 0:02:24.9]} 12. Qd3 {[%clk 0:02:55.2]} 12...
Be7 {[%clk 0:02:23.2]} 13. Nd2 {[%clk 0:02:45.3]} 13... O-O {[%clk 0:02:21.2]}
14. Nc4 {[%clk 0:02:42.3]} 14... b5 {[%clk 0:02:18.6]} 15. Nb6 {[%clk
0:02:41.6]} 15... Rb8 {[%clk 0:02:15]} 16. Nd5 {[%clk 0:02:41.6]} 16... Bxd5
{[%clk 0:02:14.3]} 17. Qxd5 {[%clk 0:02:42.5]} 17... Qc7 {[%clk 0:02:13.1]} 18.
c3 {[%clk 0:02:33]} 18... b4 {[%clk 0:02:06.3]} 19. c4 {[%clk 0:02:32.8]} 19...
Rfc8 {[%clk 0:02:05.7]} 20. b3 {[%clk 0:02:32.9]} 20... a5 {[%clk 0:02:05]} 21.
O-O {[%clk 0:02:31.3]} 21... Qc6 {[%clk 0:01:59.4]} 22. Rad1 {[%clk 0:02:28.5]}
22... Qxd5 {[%clk 0:01:58.4]} 23. Rxd5 {[%clk 0:02:29.4]} 23... a4 {[%clk
0:01:56.1]} 24. Ra5 {[%clk 0:02:23.4]} 24... axb3 {[%clk 0:01:54.7]} 25. axb3
{[%clk 0:02:24.3]} 25... Ra8 {[%clk 0:01:36]} 26. Rfa1 {[%clk 0:02:24]} 26...
Rxa5 {[%clk 0:01:36]} 27. Rxa5 {[%clk 0:02:24.9]} 27... Rb8 {[%clk 0:01:36.4]}
28. Bd2 {[%clk 0:02:03.9]} 28... Bg5 {[%clk 0:01:12]} 29. Be1 {[%clk 0:01:59.4]}
29... Kf8 {[%clk 0:01:00.3]} 30. Ra4 {[%clk 0:01:58.3]} 30... Ke7 {[%clk
0:00:57.6]} 31. Rxb4 {[%clk 0:01:58.4]} 31... Rxb4 {[%clk 0:00:57.1]} 32. Bxb4
{[%clk 0:01:59.3]} 32... Kd7 {[%clk 0:00:55]} 33. Kf1 {[%clk 0:01:58.3]} 33...
g6 {[%clk 0:00:52]} 34. Ke2 {[%clk 0:01:58]} 34... f5 {[%clk 0:00:52.3]} 35. Bd2
{[%clk 0:01:52.9]} 35... Bxd2 {[%clk 0:00:46.4]} 36. Kxd2 {[%clk 0:01:53.7]}
36... fxe4 {[%clk 0:00:47.2]} 37. Ke3 {[%clk 0:01:53.6]} 37... Kc6 {[%clk
0:00:45.1]} 38. Kxe4 {[%clk 0:01:53.1]} 38... Kc5 {[%clk 0:00:45.4]} 39. Kd3
{[%clk 0:01:44.3]} 39... Kb4 {[%clk 0:00:43.6]} 40. Kc2 {[%clk 0:01:44.5]} 40...
e4 {[%clk 0:00:36.3]} 41. Kb2 {[%clk 0:01:43.1]} 41... g5 {[%clk 0:00:35.5]} 42.
g4 {[%clk 0:01:42.4]} 42... Kc5 {[%clk 0:00:31.9]} 43. Kc3 {[%clk 0:01:41.2]}
43... d5 {[%clk 0:00:31.6]} 44. b4+ {[%clk 0:01:39.5]} 44... Kd6 {[%clk
0:00:30.9]} 45. cxd5 {[%clk 0:01:36.2]} 45... Kxd5 {[%clk 0:00:30.9]} 46. b5
{[%clk 0:01:35.3]} 46... Kc5 {[%clk 0:00:29.7]} 47. b6 {[%clk 0:01:35]} 47...
Kxb6 {[%clk 0:00:25]} 48. Kd4 {[%clk 0:01:35.5]} 48... Kc6 {[%clk 0:00:24.9]}
49. Kxe4 {[%clk 0:01:36]} 49... Kd6 {[%clk 0:00:25.4]} 50. Kf5 {[%clk
0:01:36.3]} 50... Kd5 {[%clk 0:00:22.9]} 51. Kg6 {[%clk 0:01:36.3]} 51... Ke5
{[%clk 0:00:22.9]} 52. Kxh6 {[%clk 0:01:36.4]} 52... Kf4 {[%clk 0:00:23.3]} 53.
Kh5 {[%clk 0:01:36.6]} 53... Kf3 {[%clk 0:00:23.3]} 54. Kxg5 {[%clk 0:01:37.5]}
54... Kxf2 {[%clk 0:00:23.3]} 55. h4 {[%clk 0:01:38.4]} 1-0

[Event "*** SCC Grand Prix: Titled Tuesday Blitz"]
[Site "Chess.com"]
[Date "2020.10.13"]
[Round "10"]
[White "Oleksandr_Bortnyk"]
[Black "Supernotar"]
[Result "0-1"]
[WhiteElo "2887"]
[BlackElo "2857"]
[TimeControl "180+1"]
[EndTime "11:54:20 PDT"]
[Termination "Supernotar won by checkmate"]

1. e4 {[%clk 0:03:00.9]} 1... c6 {[%clk 0:02:59.9]} 2. d4 {[%clk 0:02:59]} 2...
d5 {[%clk 0:02:59.7]} 3. Nc3 {[%clk 0:02:59.6]} 3... dxe4 {[%clk 0:02:59.3]} 4.
Nxe4 {[%clk 0:03:00.5]} 4... Bf5 {[%clk 0:02:58.2]} 5. Ng3 {[%clk 0:03:00.8]}
5... Bg6 {[%clk 0:02:58]} 6. f4 {[%clk 0:03:00.6]} 6... e6 {[%clk 0:02:55.9]} 7.
Nf3 {[%clk 0:03:00.8]} 7... Bd6 {[%clk 0:02:53.5]} 8. Bc4 {[%clk 0:02:58.6]}
8... Ne7 {[%clk 0:02:49.8]} 9. O-O {[%clk 0:02:57.1]} 9... O-O {[%clk
0:02:45.3]} 10. Qe2 {[%clk 0:02:56]} 10... Qc7 {[%clk 0:02:39.3]} 11. Ne5 {[%clk
0:02:36.5]} 11... Nd7 {[%clk 0:02:37]} 12. c3 {[%clk 0:02:14.8]} 12... Nf6
{[%clk 0:02:34.5]} 13. h4 {[%clk 0:02:10.3]} 13... h6 {[%clk 0:02:32.2]} 14. f5
{[%clk 0:01:19.2]} 14... Nxf5 {[%clk 0:02:22.6]} 15. Nxf5 {[%clk 0:01:12.5]}
15... Bxf5 {[%clk 0:02:15.4]} 16. g4 {[%clk 0:00:44.8]} 16... Bxe5 {[%clk
0:02:09.4]} 17. gxf5 {[%clk 0:00:45.2]} 17... Bd6 {[%clk 0:02:06.5]} 18. Qg2
{[%clk 0:00:39.4]} 18... Kh8 {[%clk 0:01:56.6]} 19. fxe6 {[%clk 0:00:33]} 19...
fxe6 {[%clk 0:01:56.8]} 20. Bxe6 {[%clk 0:00:33.9]} 20... Rae8 {[%clk 0:01:48]}
21. Bf5 {[%clk 0:00:33.5]} 21... Bg3 {[%clk 0:01:35.8]} 22. Bd2 {[%clk
0:00:32.1]} 22... Bxh4 {[%clk 0:01:21.7]} 23. Bf4 {[%clk 0:00:31.8]} 23... Qe7
{[%clk 0:01:19.2]} 24. Qg6 {[%clk 0:00:19.7]} 24... Qe2 {[%clk 0:00:46.4]} 25.
Bd6 {[%clk 0:00:19]} 25... Re3 {[%clk 0:00:41.9]} 26. Bc2 {[%clk 0:00:07.6]}
26... Bg5 {[%clk 0:00:33.5]} 27. Rxf6 {[%clk 0:00:06.3]} 27... Qg4+ {[%clk
0:00:30.2]} 28. Kf2 {[%clk 0:00:02.1]} 28... Re2+ {[%clk 0:00:27.4]} 29. Kf1
{[%clk 0:00:02.2]} 29... Qg2# {[%clk 0:00:27.7]} 0-1

[Event "*** SCC Grand Prix: Titled Tuesday Blitz"]
[Site "Chess.com"]
[Date "2020.10.13"]
[Round "10"]
[White "sergeikim"]
[Black "Region_07"]
[Result "1-0"]
[WhiteElo "2501"]
[BlackElo "2326"]
[TimeControl "180+1"]
[EndTime "11:54:24 PDT"]
[Termination "sergeikim won on time"]

1. d4 {[%clk 0:03:00.9]} 1... f5 {[%clk 0:02:57.6]} 2. c4 {[%clk 0:03:01.8]}
2... Nf6 {[%clk 0:02:56.3]} 3. g3 {[%clk 0:03:02.7]} 3... d6 {[%clk 0:02:56.7]}
4. Bg2 {[%clk 0:03:02.4]} 4... g6 {[%clk 0:02:57.1]} 5. Nf3 {[%clk 0:03:02.1]}
5... Bg7 {[%clk 0:02:57.5]} 6. O-O {[%clk 0:03:02.2]} 6... O-O {[%clk 0:02:58]}
7. Nc3 {[%clk 0:03:02.1]} 7... c6 {[%clk 0:02:58]} 8. Re1 {[%clk 0:03:00.6]}
8... Ne4 {[%clk 0:02:56.9]} 9. Rb1 {[%clk 0:02:52.3]} 9... Nxc3 {[%clk
0:02:46.2]} 10. bxc3 {[%clk 0:02:51.9]} 10... e5 {[%clk 0:02:46.9]} 11. Ba3
{[%clk 0:02:47.8]} 11... e4 {[%clk 0:02:40.5]} 12. Nd2 {[%clk 0:02:45.2]} 12...
Qe7 {[%clk 0:02:33.2]} 13. f3 {[%clk 0:02:43.3]} 13... e3 {[%clk 0:02:28.6]} 14.
Nf1 {[%clk 0:02:41.8]} 14... g5 {[%clk 0:02:13.5]} 15. f4 {[%clk 0:02:34.4]}
15... gxf4 {[%clk 0:02:14.4]} 16. gxf4 {[%clk 0:02:34.5]} 16... Bh6 {[%clk
0:02:13.2]} 17. Ng3 {[%clk 0:02:25.3]} 17... Bxf4 {[%clk 0:02:12.5]} 18. Rf1
{[%clk 0:02:25.2]} 18... Bh6 {[%clk 0:01:59.6]} 19. Qd3 {[%clk 0:01:52.3]} 19...
f4 {[%clk 0:01:53.7]} 20. Ne4 {[%clk 0:01:52.3]} 20... Bf5 {[%clk 0:01:52.3]}
21. Bxd6 {[%clk 0:01:48]} 21... Qxd6 {[%clk 0:01:51.2]} 22. Nxd6 {[%clk
0:01:47.6]} 22... Bxd3 {[%clk 0:01:52.1]} 23. exd3 {[%clk 0:01:48]} 23... Nd7
{[%clk 0:01:07.3]} 24. Nxb7 {[%clk 0:01:39.9]} 24... e2 {[%clk 0:00:55.9]} 25.
Rf2 {[%clk 0:01:38]} 25... Rae8 {[%clk 0:00:54.1]} 26. Be4 {[%clk 0:01:29.3]}
26... f3 {[%clk 0:00:39.4]} 27. Nd6 {[%clk 0:01:27.9]} 27... Bd2 {[%clk
0:00:18.4]} 28. Nxe8 {[%clk 0:01:25]} 28... Rxe8 {[%clk 0:00:18.2]} 29. Rxf3
{[%clk 0:01:17.7]} 29... e1=Q+ {[%clk 0:00:18.3]} 30. Rxe1 {[%clk 0:01:16.4]}
30... Bxe1 {[%clk 0:00:19.2]} 31. Bxc6 {[%clk 0:01:15.7]} 31... Rf8 {[%clk
0:00:17.8]} 32. Rf1 {[%clk 0:01:03.6]} 32... Rxf1+ {[%clk 0:00:06.3]} 33. Kxf1
{[%clk 0:01:03.4]} 33... Nb8 {[%clk 0:00:07]} 34. Bd5+ {[%clk 0:01:02.5]} 34...
Kf8 {[%clk 0:00:05.4]} 35. Kxe1 {[%clk 0:01:03]} 35... Ke7 {[%clk 0:00:05.6]}
36. Be4 {[%clk 0:01:00.4]} 36... h6 {[%clk 0:00:04.1]} 37. c5 {[%clk 0:01:00.2]}
37... Nd7 {[%clk 0:00:02.6]} 38. Ke2 {[%clk 0:00:59.1]} 38... Nf6 {[%clk
0:00:02.5]} 39. Kf3 {[%clk 0:00:55.7]} 1-0

[Event "*** SCC Grand Prix: Titled Tuesday Blitz"]
[Site "Chess.com"]
[Date "2020.10.13"]
[Round "10"]
[White "ftorodent"]
[Black "bazar-wokzal"]
[Result "1-0"]
[WhiteElo "2681"]
[BlackElo "2515"]
[TimeControl "180+1"]
[EndTime "11:54:25 PDT"]
[Termination "ftorodent won by resignation"]

1. d4 {[%clk 0:03:00.9]} 1... Nf6 {[%clk 0:02:59.7]} 2. c4 {[%clk 0:03:00.6]}
2... Nc6 {[%clk 0:02:59.5]} 3. Nf3 {[%clk 0:02:52.7]} 3... e6 {[%clk 0:02:59.7]}
4. a3 {[%clk 0:02:51.8]} 4... g6 {[%clk 0:02:59.1]} 5. Nc3 {[%clk 0:02:51]} 5...
Bg7 {[%clk 0:02:58.7]} 6. e4 {[%clk 0:02:51]} 6... d5 {[%clk 0:02:58.8]} 7. e5
{[%clk 0:02:49.4]} 7... Ne4 {[%clk 0:02:58.8]} 8. Bd3 {[%clk 0:02:49.4]} 8...
Nxc3 {[%clk 0:02:58.6]} 9. bxc3 {[%clk 0:02:49.6]} 9... dxc4 {[%clk 0:02:59.5]}
10. Bxc4 {[%clk 0:02:49.2]} 10... Na5 {[%clk 0:03:00.2]} 11. Ba2 {[%clk
0:02:41.7]} 11... c5 {[%clk 0:02:59.1]} 12. Bg5 {[%clk 0:02:38.5]} 12... Qc7
{[%clk 0:02:58.1]} 13. O-O {[%clk 0:02:34.3]} 13... h6 {[%clk 0:02:56.5]} 14.
Bf6 {[%clk 0:02:27.3]} 14... Bxf6 {[%clk 0:02:34.7]} 15. exf6 {[%clk 0:02:27.1]}
15... Qf4 {[%clk 0:02:21]} 16. d5 {[%clk 0:01:57.4]} 16... O-O {[%clk
0:02:14.9]} 17. dxe6 {[%clk 0:01:36.1]} 17... Bxe6 {[%clk 0:02:14.1]} 18. Bxe6
{[%clk 0:01:34.9]} 18... fxe6 {[%clk 0:02:14.1]} 19. Re1 {[%clk 0:01:28.7]}
19... Qxf6 {[%clk 0:02:08.5]} 20. Qe2 {[%clk 0:01:20]} 20... Rae8 {[%clk
0:02:01.6]} 21. Qe3 {[%clk 0:01:16.7]} 21... g5 {[%clk 0:01:54.6]} 22. Rad1
{[%clk 0:01:13.5]} 22... b6 {[%clk 0:01:48.2]} 23. Ne5 {[%clk 0:01:10.4]} 23...
Qf4 {[%clk 0:01:16.5]} 24. Qe2 {[%clk 0:01:09.3]} 24... Rf5 {[%clk 0:01:01.1]}
25. Qh5 {[%clk 0:00:37]} 25... Qxf2+ {[%clk 0:00:40]} 26. Kh1 {[%clk 0:00:37]}
26... Ref8 {[%clk 0:00:34.7]} 27. Qg6+ {[%clk 0:00:31.2]} 27... Kh8 {[%clk
0:00:34.7]} 28. Qxh6+ {[%clk 0:00:31.4]} 28... Kg8 {[%clk 0:00:35.1]} 29. Qxe6+
{[%clk 0:00:31.4]} 29... Kg7 {[%clk 0:00:20.4]} 30. Rd7+ {[%clk 0:00:29.8]}
30... R8f7 {[%clk 0:00:19.7]} 31. Qg6+ {[%clk 0:00:29.4]} 31... Kh8 {[%clk
0:00:16.6]} 32. Nxf7+ {[%clk 0:00:29.2]} 32... Rxf7 {[%clk 0:00:16.7]} 33. Re8+
{[%clk 0:00:29.2]} 1-0